fUSD/lending_fUSD_20260529
["ID","MTS","AMOUNT","RATE_DAILY","PERIOD"]
[423369815,1780067548000,-441.0,0.00038082,2]
[423369826,1780067548000,-441.0,0.00038082,2]
[423369824,1780067548000,-441.0,0.00038082,2]
[423369834,1780067548000,-441.0,0.00038082,2]
[423369835,1780067548000,-441.0,0.00038082,2]
[423369828,1780067548000,-441.0,0.00038082,2]
[423369829,1780067548000,-441.0,0.00038082,2]
[423369827,1780067548000,-441.0,0.00038082,2]
[423369825,1780067548000,-441.0,0.00038082,2]
[423369823,1780067548000,-441.0,0.00038082,2]
[423369833,1780067548000,-441.0,0.00038082,2]
[423369806,1780067548000,-500.0,0.00038082,2]
[423369831,1780067548000,-441.0,0.00038082,2]
[423369822,1780067548000,-441.0,0.00038082,2]
[423369809,1780067548000,-441.47620498,0.00038082,2]
[423369787,1780067548000,-213.717965,0.00038071,7]
[423369801,1780067548000,-500.0,0.00038082,2]
[423369832,1780067548000,-441.0,0.00038082,2]
[423369784,1780067548000,-213.717974,0.00038071,7]
[423369785,1780067548000,-213.717974,0.00038071,7]
[423369786,1780067548000,-213.717974,0.00038071,7]
[423369789,1780067548000,-500.0,0.00038082,30]
[423369788,1780067548000,-58844.129149,0.00038071,7]
[423369790,1780067548000,-605.20619622,0.00038082,30]
[423369795,1780067548000,-500.0,0.00038082,2]
[423369794,1780067548000,-500.0,0.00038082,2]
[423369796,1780067548000,-500.0,0.00038082,2]
[423369793,1780067548000,-203.58126379,0.00038082,30]
[423369805,1780067548000,-500.0,0.00038082,2]
[423369792,1780067548000,-500.0,0.00038082,2]
[423369797,1780067548000,-500.0,0.00038082,2]
[423369798,1780067548000,-500.0,0.00038082,2]
[423369800,1780067548000,-500.0,0.00038082,2]
[423369811,1780067548000,-150.0,0.00038082,30]
[423369810,1780067548000,-150.0,0.00038082,2]
[423369803,1780067548000,-500.0,0.00038082,2]
[423369808,1780067548000,-500.0,0.00038082,2]
[423369799,1780067548000,-500.0,0.00038082,2]
[423369802,1780067548000,-500.0,0.00038082,2]
[423369804,1780067548000,-500.0,0.00038082,2]
[423369807,1780067548000,-500.0,0.00038082,2]
[423369791,1780067548000,-500.0,0.00038082,2]
[423369830,1780067548000,-441.0,0.00038082,2]
[423369842,1780067548000,-1355.93393146,0.00038107,7]
[423369838,1780067548000,-1000.0,0.00038085,10]
[423369866,1780067548000,-385.0,0.00038329,120]
[423369867,1780067548000,-1954.0,0.00038329,120]
[423369865,1780067548000,-150.0,0.00038306,2]
[423369869,1780067548000,-1000.0,0.00038344,10]
[423369871,1780067548000,-150.0,0.00038356,2]
[423369870,1780067548000,-221.14,0.00038356,60]
[423369872,1780067548000,-150.0,0.00038356,2]
[423369880,1780067548000,-996.0,0.00038396,16]
[423369877,1780067548000,-9707.52,0.00038356,14]
[423369876,1780067548000,-8860.76,0.00038356,14]
[423369873,1780067548000,-1550.0,0.00038356,30]
[423369874,1780067548000,-1000.0,0.00038356,120]
[423369878,1780067548000,-1000.0,0.00038359,10]
[423369875,1780067548000,-151.0,0.00038356,15]
[423369879,1780067548000,-1000.0,0.00038379,105]
[423369881,1780067548000,-1000.0,0.00038399,41]
[423369882,1780067548000,-515.69262603,0.000384,120]
[423369885,1780067548000,-609.75080348,0.000384,120]
[423369883,1780067548000,-342.38054812,0.000384,120]
[423369888,1780067548000,-775.65340832,0.000384,120]
[423369836,1780067548000,-460.0,0.00038082,2]
[423369884,1780067548000,-979.60253031,0.000384,120]
[423369886,1780067548000,-986.17982912,0.000384,120]
[423369860,1780067548000,-250.0,0.00038169,2]
[423369859,1780067548000,-250.0,0.00038169,2]
[423369887,1780067548000,-514.9307097,0.000384,120]
[423369864,1780067548000,-433.23008939,0.00038273,2]
[423369862,1780067548000,-1000.0,0.00038222,10]
[423369839,1780067548000,-1000.0,0.00038099,33]
[423369837,1780067548000,-1550.0,0.00038082,30]
[423369841,1780067548000,-1379.14,0.000381,120]
[423369843,1780067548000,-3737.14944047,0.00038107,7]
[423369845,1780067548000,-3115.9,0.00038125,30]
[423369844,1780067548000,-502.26114607,0.00038107,7]
[423369846,1780067548000,-160.09572114,0.00038143,2]
[423369848,1780067548000,-183.25,0.00038152,14]
[423369849,1780067548000,-2303.75726722,0.00038165,97]
[423369855,1780067548000,-5000.0,0.00038169,2]
[423369840,1780067548000,-1379.144,0.000381,120]
[423369850,1780067548000,-2303.75726722,0.00038165,97]
[423369851,1780067548000,-5000.0,0.00038169,2]
[423369857,1780067548000,-250.0,0.00038169,2]
[423369868,1780067548000,-1954.0,0.00038329,120]
[423369858,1780067548000,-250.0,0.00038169,2]
[423369861,1780067548000,-1000.0,0.00038207,10]
[423369854,1780067548000,-5000.0,0.00038169,2]
[423369847,1780067548000,-183.24,0.00038152,14]
[423369853,1780067548000,-5000.0,0.00038169,2]
[423369856,1780067548000,-250.0,0.00038169,2]
[423369852,1780067548000,-5000.0,0.00038169,2]
[423369863,1780067548000,-3000.0,0.0003826,60]
[423369913,1780067549000,-498.98,0.00038533,42]
[423369920,1780067549000,-250.0,0.00038566,2]
[423369912,1780067549000,-82592.47519842,0.000385,3]
[423369911,1780067549000,-1000.0,0.000385,2]
[423369915,1780067549000,-5000.0,0.00038566,2]
[423369919,1780067549000,-251.03060051,0.00038566,2]
[423369917,1780067549000,-5000.0,0.00038566,2]
[423369918,1780067549000,-5000.0,0.00038566,2]
[423369928,1780067549000,-150.0,0.00038566,7]
[423369927,1780067549000,-150.0,0.00038566,7]
[423369921,1780067549000,-250.0,0.00038566,2]
[423369923,1780067549000,-150.0,0.00038566,7]
[423369924,1780067549000,-150.0,0.00038566,7]
[423369922,1780067549000,-250.0,0.00038566,2]
[423369926,1780067549000,-150.0,0.00038566,7]
[423369925,1780067549000,-150.0,0.00038566,7]
[423369939,1780067549000,-150.0,0.00038566,7]
[423369931,1780067549000,-150.0,0.00038566,7]
[423369910,1780067549000,-584.6420191,0.000385,5]
[423369929,1780067549000,-150.0,0.00038566,7]
[423369914,1780067549000,-430.03858076,0.00038538,90]
[423369897,1780067549000,-1031.22384984,0.000384,120]
[423369909,1780067549000,-500.0,0.00038496,120]
[423369938,1780067549000,-150.0,0.00038566,7]
[423369890,1780067549000,-1028.11360074,0.000384,120]
[423369891,1780067549000,-1004.99159889,0.000384,120]
[423369889,1780067549000,-588.16446486,0.000384,120]
[423369894,1780067549000,-848.71408364,0.000384,120]
[423369892,1780067549000,-2341.79346203,0.000384,120]
[423369893,1780067549000,-1966.16350451,0.000384,120]
[423369895,1780067549000,-3283.62274669,0.000384,120]
[423369903,1780067549000,-383.47,0.000384,120]
[423369908,1780067549000,-1000.0,0.00038496,10]
[423369898,1780067549000,-1243.04091773,0.000384,120]
[423369904,1780067549000,-755.4426853,0.000384,120]
[423369900,1780067549000,-1884.39236652,0.000384,120]
[423369901,1780067549000,-1474.49190058,0.000384,120]
[423369902,1780067549000,-165.64168971,0.000384,120]
[423369896,1780067549000,-674.74610462,0.000384,120]
[423369906,1780067549000,-15000.0,0.00038463,7]
[423369905,1780067549000,-359.61405882,0.000384,120]
[423369916,1780067549000,-5000.0,0.00038566,2]
[423369907,1780067549000,-1000.0,0.00038481,10]
[423369899,1780067549000,-2864.48198912,0.000384,120]
[423369933,1780067549000,-150.0,0.00038566,7]
[423369971,1780067549000,-350.0,0.00038767,5]
[423369932,1780067549000,-150.0,0.00038566,7]
[423369965,1780067549000,-232.0,0.00038632,10]
[423369958,1780067549000,-150.0,0.00038632,10]
[423369957,1780067549000,-150.0,0.00038632,10]
[423369966,1780067549000,-1000.0,0.00038633,10]
[423369960,1780067549000,-150.0,0.00038632,10]
[423369961,1780067549000,-150.0,0.00038632,10]
[423369959,1780067549000,-150.0,0.00038632,10]
[423369967,1780067549000,-1000.0,0.00038678,120]
[423369972,1780067549000,-1000.0,0.0003877,10]
[423369969,1780067549000,-150.0,0.00038724,2]
[423369977,1780067549000,-500.0,0.0003877,120]
[423369975,1780067549000,-500.0,0.0003877,120]
[423369978,1780067549000,-500.0,0.0003877,120]
[423369979,1780067549000,-500.0,0.0003877,120]
[423369970,1780067549000,-1000.0,0.00038755,10]
[423369974,1780067549000,-500.0,0.0003877,120]
[423369976,1780067549000,-500.0,0.0003877,120]
[423369973,1780067549000,-500.0,0.0003877,120]
[423369937,1780067549000,-150.0,0.00038566,7]
[423369955,1780067549000,-150.0,0.00038632,10]
[423369964,1780067549000,-150.0,0.00038632,10]
[423369968,1780067549000,-997.6,0.00038678,90]
[423369963,1780067549000,-150.0,0.00038632,10]
[423369962,1780067549000,-150.0,0.00038632,10]
[423369936,1780067549000,-150.0,0.00038566,7]
[423369940,1780067549000,-150.0,0.00038566,7]
[423369930,1780067549000,-150.0,0.00038566,7]
[423369941,1780067549000,-150.0,0.00038566,7]
[423369934,1780067549000,-150.0,0.00038566,7]
[423369935,1780067549000,-150.0,0.00038566,7]
[423369943,1780067549000,-298.54018974,0.00038597,7]
[423369947,1780067549000,-1550.0,0.0003863,30]
[423369954,1780067549000,-150.0,0.00038632,10]
[423369942,1780067549000,-150.0,0.00038597,7]
[423369945,1780067549000,-1484.51,0.000386,60]
[423369952,1780067549000,-150.0,0.00038632,10]
[423369953,1780067549000,-150.0,0.00038632,10]
[423369949,1780067549000,-150.0,0.00038632,10]
[423369946,1780067549000,-1000.0,0.00038618,10]
[423369951,1780067549000,-150.0,0.00038632,10]
[423369950,1780067549000,-150.0,0.00038632,10]
[423369956,1780067549000,-150.0,0.00038632,10]
[423369948,1780067549000,-150.0,0.00038632,10]
[423369944,1780067549000,-1484.519,0.000386,60]
[423370011,1780067550000,-3347.123302,0.0003893,7]
[423370012,1780067550000,-2595.76688106,0.0003893,7]
[423370004,1780067550000,-1000.0,0.00038907,10]
[423370005,1780067550000,-500.0,0.00038909,7]
[423370003,1780067550000,-1550.0,0.00038904,30]
[423370001,1780067550000,-700.0,0.000389,14]
[423370006,1780067550000,-1000.0,0.00038919,116]
[423370009,1780067550000,-1478.44957008,0.0003893,7]
[423370014,1780067550000,-2955.20005863,0.0003893,7]
[423370010,1780067550000,-1642.77592966,0.0003893,2]
[423370008,1780067550000,-500.0,0.00038925,7]
[423370022,1780067550000,-500.0,0.00038963,7]
[423370023,1780067550000,-5000.0,0.00038964,2]
[423370013,1780067550000,-1715.74407287,0.0003893,7]
[423370016,1780067550000,-500.0,0.00038935,7]
[423370002,1780067550000,-3100.9,0.000389,120]
[423370018,1780067550000,-2000.0,0.0003895,2]
[423370007,1780067550000,-1769.37498373,0.00038924,7]
[423370000,1780067550000,-15925.42204814,0.000389,2]
[423369990,1780067550000,-283.66999779,0.00038816,120]
[423369994,1780067550000,-1885.81,0.00038852,30]
[423370015,1780067550000,-3081.24895427,0.0003893,7]
[423369981,1780067550000,-10682.37,0.00038777,9]
[423369980,1780067550000,-512.0,0.0003877,120]
[423369982,1780067550000,-122120.87,0.00038777,9]
[423369988,1780067550000,-3000.0,0.00038808,60]
[423369987,1780067550000,-953.42540024,0.000388,20]
[423369983,1780067550000,-749.9922389,0.00038795,7]
[423369984,1780067550000,-2014.4167535,0.000388,10]
[423369995,1780067550000,-500.0,0.00038877,2]
[423369985,1780067550000,-137263.0,0.000388,30]
[423369993,1780067550000,-12702.4749798,0.00038834,2]
[423369992,1780067550000,-8860.76,0.00038831,14]
[423369989,1780067550000,-5642.8812041,0.00038811,120]
[423369991,1780067550000,-356.44150504,0.00038816,120]
[423369998,1780067550000,-681.89576025,0.000389,15]
[423369999,1780067550000,-410507.87964219,0.000389,2]
[423369996,1780067550000,-76185.48,0.00038878,9]
[423369997,1780067550000,-1000.0,0.00038892,10]
[423369986,1780067550000,-1047.26706802,0.000388,20]
[423370021,1780067550000,-500.0,0.00038954,7]
[423370019,1780067550000,-10000.0,0.0003895,2]
[423370020,1780067550000,-996.0,0.0003895,16]
[423370042,1780067550000,-5000.0,0.00039,5]
[423370048,1780067550000,-2550.0,0.00039,2]
[423370047,1780067550000,-4838.44459914,0.00039,10]
[423370049,1780067550000,-500.0,0.00039,14]
[423370050,1780067550000,-175.63,0.00039,5]
[423370051,1780067550000,-3202.63,0.00039,2]
[423370054,1780067550000,-16705.28369359,0.00039,10]
[423370053,1780067550000,-21515.18413252,0.00039,2]
[423370043,1780067550000,-5000.0,0.00039,5]
[423370052,1780067550000,-31361.96517965,0.00039,2]
[423370056,1780067550000,-10000.0,0.00039,7]
[423370058,1780067550000,-1000.0,0.00039,120]
[423370063,1780067550000,-3190.23638862,0.00039016,120]
[423370060,1780067550000,-160.0,0.00039,120]
[423370061,1780067550000,-4503.27412532,0.00039016,120]
[423370062,1780067550000,-331.3543617,0.00039016,120]
[423370059,1780067550000,-4774223.0,0.00039,7]
[423370017,1780067550000,-272.72655189,0.00038935,7]
[423370055,1780067550000,-11410.01414158,0.00039,4]
[423370045,1780067550000,-5000.0,0.00039,5]
[423370057,1780067550000,-10000.0,0.00039,7]
[423370039,1780067550000,-5000.0,0.00039,5]
[423370033,1780067550000,-121000.0,0.00039,7]
[423370044,1780067550000,-5000.0,0.00039,5]
[423370028,1780067550000,-250.0,0.00038964,2]
[423370034,1780067550000,-168.35,0.00039,7]
[423370024,1780067550000,-5000.0,0.00038964,2]
[423370026,1780067550000,-250.0,0.00038964,2]
[423370027,1780067550000,-250.0,0.00038964,2]
[423370029,1780067550000,-1463.7,0.00038964,30]
[423370032,1780067550000,-9891.18006834,0.00039,5]
[423370025,1780067550000,-5000.0,0.00038964,2]
[423370031,1780067550000,-1005.07,0.00038998,120]
[423370036,1780067550000,-524.53984178,0.00039,7]
[423370046,1780067550000,-4847.0,0.00039,5]
[423370035,1780067550000,-3297.59881327,0.00039,2]
[423370038,1780067550000,-500.0,0.00039,11]
[423370040,1780067550000,-5000.0,0.00039,5]
[423370041,1780067550000,-5000.0,0.00039,5]
[423370030,1780067550000,-151.955364,0.00038997,14]
[423370037,1780067550000,-500.0,0.00039,11]
[423370101,1780067551000,-500.0,0.00039178,2]
[423370102,1780067551000,-447.001312,0.00039178,2]
[423370100,1780067551000,-489.39909314,0.00039178,2]
[423370104,1780067551000,-500.0,0.00039178,2]
[423370094,1780067551000,-322.82,0.00039138,120]
[423370097,1780067551000,-500.0,0.00039178,2]
[423370095,1780067551000,-500.0,0.00039161,2]
[423370098,1780067551000,-516.291124,0.00039178,2]
[423370099,1780067551000,-500.0,0.00039178,2]
[423370093,1780067551000,-465.14,0.00039121,7]
[423370096,1780067551000,-1000.0,0.00039165,10]
[423370108,1780067551000,-2418.85,0.00039178,2]
[423370125,1780067551000,-2418.85,0.00039178,2]
[423370106,1780067551000,-500.0,0.00039178,2]
[423370109,1780067551000,-2418.85,0.00039178,2]
[423370105,1780067551000,-500.0,0.00039178,2]
[423370112,1780067551000,-2418.85,0.00039178,2]
[423370110,1780067551000,-2418.85,0.00039178,2]
[423370113,1780067551000,-2418.85,0.00039178,2]
[423370111,1780067551000,-2418.85,0.00039178,2]
[423370114,1780067551000,-2418.85,0.00039178,2]
[423370115,1780067551000,-2418.85,0.00039178,2]
[423370117,1780067551000,-2418.85,0.00039178,2]
[423370116,1780067551000,-2418.85,0.00039178,2]
[423370091,1780067551000,-2028598.0,0.000391,7]
[423370107,1780067551000,-367.503291,0.00039178,2]
[423370087,1780067551000,-615.55,0.00039082,2]
[423370071,1780067551000,-28477.69,0.00039077,2]
[423370089,1780067551000,-500.0,0.00039082,60]
[423370118,1780067551000,-2418.85,0.00039178,2]
[423370068,1780067551000,-150.0,0.00039026,120]
[423370065,1780067551000,-150.0,0.00039026,120]
[423370064,1780067551000,-350.0,0.00039025,6]
[423370066,1780067551000,-150.0,0.00039026,120]
[423370067,1780067551000,-150.0,0.00039026,120]
[423370069,1780067551000,-1000.0,0.00039028,10]
[423370073,1780067551000,-9492.54,0.00039077,7]
[423370076,1780067551000,-500.0,0.00039082,2]
[423370070,1780067551000,-1000.0,0.00039044,10]
[423370075,1780067551000,-500.0,0.00039082,2]
[423370080,1780067551000,-500.0,0.00039082,2]
[423370072,1780067551000,-25313.5,0.00039077,7]
[423370074,1780067551000,-500.0,0.00039082,2]
[423370078,1780067551000,-500.0,0.00039082,2]
[423370077,1780067551000,-500.0,0.00039082,2]
[423370079,1780067551000,-500.0,0.00039082,2]
[423370082,1780067551000,-500.0,0.00039082,2]
[423370092,1780067551000,-1000.0,0.00039114,90]
[423370081,1780067551000,-500.0,0.00039082,2]
[423370085,1780067551000,-500.0,0.00039082,2]
[423370084,1780067551000,-500.0,0.00039082,2]
[423370083,1780067551000,-500.0,0.00039082,2]
[423370086,1780067551000,-500.0,0.00039082,2]
[423370088,1780067551000,-3000.0,0.00039082,60]
[423370090,1780067551000,-322.82,0.00039088,120]
[423370119,1780067551000,-2418.85,0.00039178,2]
[423370103,1780067551000,-500.0,0.00039178,2]
[423370124,1780067551000,-2418.85,0.00039178,2]
[423370150,1780067551000,-500.0,0.00039178,2]
[423370158,1780067551000,-500.0,0.00039178,2]
[423370154,1780067551000,-500.0,0.00039178,2]
[423370157,1780067551000,-500.0,0.00039178,2]
[423370160,1780067551000,-413.0516865,0.00039178,2]
[423370159,1780067551000,-500.0,0.00039178,2]
[423370153,1780067551000,-500.0,0.00039178,2]
[423370155,1780067551000,-500.0,0.00039178,2]
[423370156,1780067551000,-500.0,0.00039178,2]
[423370162,1780067551000,-300.0,0.00039178,2]
[423370161,1780067551000,-300.0,0.00039178,2]
[423370163,1780067551000,-300.0,0.00039178,2]
[423370170,1780067551000,-300.0,0.00039178,2]
[423370171,1780067551000,-300.0,0.00039178,2]
[423370164,1780067551000,-300.0,0.00039178,2]
[423370172,1780067551000,-300.0,0.00039178,2]
[423370166,1780067551000,-300.0,0.00039178,2]
[423370165,1780067551000,-300.0,0.00039178,2]
[423370169,1780067551000,-300.0,0.00039178,2]
[423370168,1780067551000,-300.0,0.00039178,2]
[423370167,1780067551000,-300.0,0.00039178,2]
[423370173,1780067551000,-300.0,0.00039178,2]
[423370176,1780067551000,-180.66609,0.00039178,2]
[423370175,1780067551000,-169.78679938,0.00039178,2]
[423370174,1780067551000,-300.0,0.00039178,2]
[423370152,1780067551000,-500.0,0.00039178,2]
[423370151,1780067551000,-500.0,0.00039178,2]
[423370122,1780067551000,-2418.85,0.00039178,2]
[423370146,1780067551000,-500.0,0.00039178,2]
[423370123,1780067551000,-2418.85,0.00039178,2]
[423370120,1780067551000,-2418.85,0.00039178,2]
[423370121,1780067551000,-2418.85,0.00039178,2]
[423370127,1780067551000,-2418.85,0.00039178,2]
[423370137,1780067551000,-500.0,0.00039178,2]
[423370126,1780067551000,-2418.85,0.00039178,2]
[423370128,1780067551000,-2418.85,0.00039178,2]
[423370149,1780067551000,-500.0,0.00039178,2]
[423370131,1780067551000,-2418.88761281,0.00039178,2]
[423370132,1780067551000,-500.0,0.00039178,2]
[423370130,1780067551000,-2418.85,0.00039178,2]
[423370134,1780067551000,-576.99422554,0.00039178,2]
[423370135,1780067551000,-500.0,0.00039178,2]
[423370129,1780067551000,-2418.85,0.00039178,2]
[423370133,1780067551000,-500.0,0.00039178,2]
[423370136,1780067551000,-500.0,0.00039178,2]
[423370140,1780067551000,-500.0,0.00039178,2]
[423370142,1780067551000,-590.477,0.00039178,2]
[423370145,1780067551000,-500.0,0.00039178,2]
[423370144,1780067551000,-500.0,0.00039178,2]
[423370143,1780067551000,-500.0,0.00039178,2]
[423370139,1780067551000,-236.8070569,0.00039178,2]
[423370177,1780067551000,-1550.0,0.00039178,30]
[423370138,1780067551000,-500.0,0.00039178,2]
[423370147,1780067551000,-500.0,0.00039178,2]
[423370148,1780067551000,-500.0,0.00039178,2]
[423370141,1780067551000,-500.0,0.00039178,2]
[423370215,1780067552000,-831.97092004,0.00039358,120]
[423370209,1780067552000,-502.26114607,0.00039333,7]
[423370212,1780067552000,-350.0,0.00039354,9]
[423370214,1780067552000,-500.0,0.00039358,2]
[423370213,1780067552000,-200.0,0.00039358,30]
[423370216,1780067552000,-212.93979684,0.00039358,120]
[423370211,1780067552000,-322.82,0.00039338,120]
[423370217,1780067552000,-471.99624459,0.00039358,120]
[423370207,1780067552000,-1355.93393146,0.00039333,7]
[423370218,1780067552000,-176.59884132,0.00039358,120]
[423370210,1780067552000,-302.08887354,0.00039336,14]
[423370219,1780067552000,-180.10108898,0.00039358,120]
[423370242,1780067552000,-841.0,0.00039363,120]
[423370220,1780067552000,-170.27584913,0.00039358,120]
[423370224,1780067552000,-310.881905,0.00039358,120]
[423370226,1780067552000,-500.0,0.00039358,30]
[423370228,1780067552000,-500.0,0.00039358,30]
[423370230,1780067552000,-500.0,0.00039358,30]
[423370227,1780067552000,-500.0,0.00039358,30]
[423370225,1780067552000,-531.29200162,0.00039358,120]
[423370223,1780067552000,-438.07529303,0.00039358,120]
[423370222,1780067552000,-303.84472315,0.00039358,120]
[423370229,1780067552000,-500.0,0.00039358,30]
[423370232,1780067552000,-500.0,0.00039358,30]
[423370208,1780067552000,-3737.14944047,0.00039333,7]
[423370221,1780067552000,-226.64463969,0.00039358,120]
[423370203,1780067552000,-8860.76,0.00039306,14]
[423370192,1780067552000,-500.0,0.00039298,90]
[423370206,1780067552000,-2363.94415613,0.00039333,7]
[423370243,1780067552000,-156.0,0.00039363,120]
[423370184,1780067552000,-322.82,0.00039288,120]
[423370178,1780067552000,-1000.0,0.00039181,10]
[423370181,1780067552000,-500.7,0.00039196,2]
[423370183,1780067552000,-322.82,0.00039238,120]
[423370179,1780067552000,-322.82,0.00039188,120]
[423370180,1780067552000,-1005.07,0.00039196,120]
[423370186,1780067552000,-500.0,0.00039298,90]
[423370185,1780067552000,-1000.0,0.00039289,90]
[423370187,1780067552000,-500.0,0.00039298,90]
[423370188,1780067552000,-500.0,0.00039298,90]
[423370189,1780067552000,-500.0,0.00039298,90]
[423370190,1780067552000,-500.0,0.00039298,90]
[423370194,1780067552000,-500.0,0.00039298,90]
[423370191,1780067552000,-500.0,0.00039298,90]
[423370195,1780067552000,-500.0,0.00039298,90]
[423370193,1780067552000,-500.0,0.00039298,90]
[423370200,1780067552000,-2154.615,0.000393,30]
[423370199,1780067552000,-2154.615,0.000393,30]
[423370198,1780067552000,-473.66547865,0.00039298,90]
[423370196,1780067552000,-500.0,0.00039298,90]
[423370197,1780067552000,-500.0,0.00039298,90]
[423370202,1780067552000,-1000.0,0.00039302,10]
[423370201,1780067552000,-2154.61,0.000393,30]
[423370205,1780067552000,-84314.44616078,0.00039333,7]
[423370204,1780067552000,-1000.0,0.00039318,10]
[423370182,1780067552000,-1492.37824613,0.00039198,7]
[423370236,1780067552000,-150.0,0.00039358,2]
[423370241,1780067552000,-674.0,0.00039363,120]
[423370263,1780067552000,-478.0,0.00039363,2]
[423370268,1780067552000,-541.59,0.00039363,2]
[423370273,1780067552000,-541.59,0.00039363,2]
[423370271,1780067552000,-541.59,0.00039363,2]
[423370274,1780067552000,-541.59,0.00039363,2]
[423370269,1780067552000,-541.59,0.00039363,2]
[423370276,1780067552000,-541.59,0.00039363,2]
[423370270,1780067552000,-541.59,0.00039363,2]
[423370275,1780067552000,-541.59,0.00039363,2]
[423370278,1780067552000,-541.59,0.00039363,2]
[423370272,1780067552000,-541.59,0.00039363,2]
[423370277,1780067552000,-541.59,0.00039363,2]
[423370280,1780067552000,-541.59,0.00039363,2]
[423370281,1780067552000,-541.59,0.00039363,2]
[423370279,1780067552000,-541.59,0.00039363,2]
[423370282,1780067552000,-541.59,0.00039363,2]
[423370288,1780067552000,-18548.15870216,0.00039363,2]
[423370284,1780067552000,-541.59,0.00039363,2]
[423370285,1780067552000,-541.59,0.00039363,2]
[423370286,1780067552000,-541.59,0.00039363,2]
[423370283,1780067552000,-541.59,0.00039363,2]
[423370287,1780067552000,-541.60305664,0.00039363,2]
[423370290,1780067552000,-207810.03137835,0.00039363,2]
[423370289,1780067552000,-401.75916461,0.00039363,2]
[423370233,1780067552000,-500.0,0.00039358,30]
[423370264,1780067552000,-541.59,0.00039363,2]
[423370261,1780067552000,-500.0,0.00039363,2]
[423370291,1780067552000,-172534.93575647,0.00039363,2]
[423370265,1780067552000,-541.59,0.00039363,2]
[423370262,1780067552000,-500.0,0.00039363,2]
[423370234,1780067552000,-500.0,0.00039358,30]
[423370237,1780067552000,-5000.0,0.00039361,2]
[423370231,1780067552000,-500.0,0.00039358,30]
[423370238,1780067552000,-5000.0,0.00039361,2]
[423370239,1780067552000,-250.0,0.00039361,2]
[423370235,1780067552000,-491.02,0.00039358,30]
[423370244,1780067552000,-3500.0,0.00039363,5]
[423370246,1780067552000,-156.57133655,0.00039363,14]
[423370250,1780067552000,-500.0,0.00039363,2]
[423370247,1780067552000,-269.7553272,0.00039363,11]
[423370249,1780067552000,-114148.65,0.00039363,15]
[423370252,1780067552000,-500.0,0.00039363,2]
[423370240,1780067552000,-250.0,0.00039361,2]
[423370255,1780067552000,-500.0,0.00039363,2]
[423370253,1780067552000,-500.0,0.00039363,2]
[423370260,1780067552000,-500.0,0.00039363,2]
[423370266,1780067552000,-541.59,0.00039363,2]
[423370258,1780067552000,-500.0,0.00039363,2]
[423370256,1780067552000,-500.0,0.00039363,2]
[423370259,1780067552000,-500.0,0.00039363,2]
[423370257,1780067552000,-500.0,0.00039363,2]
[423370251,1780067552000,-500.0,0.00039363,2]
[423370245,1780067552000,-2000.0,0.00039363,20]
[423370248,1780067552000,-344.62293397,0.00039363,2]
[423370254,1780067552000,-500.0,0.00039363,2]
[423370267,1780067552000,-541.59,0.00039363,2]
[423370332,1780067553000,-180.04186043,0.00039363,2]